Workbook

Sheet w12
A1: 160.9498626 | B1: 56.60732844 | C1: =$K$1*A1+$K$2 -> 0 | D1: =(ABS(B1-C1))^2 -> 3204.389633 | F1: 148 | G1: =$K$1*F1+$K$2 -> 0 | H1: gap | I1: 기울기 | J1: w1 | K1: 0 | L1: m1(+) | N1: w1
A2: 154.6698922 | B2: 51.93815198 | C2: =$K$1*A2+$K$2 -> 0 | D2: =(ABS(B2-C2))^2 -> 2697.571631 | F2: =F1+$H$2 -> 148.18 | G2: =$K$1*F2+$K$2 -> 0 | H2: 0.18 | I2: 절편 | J2: w2 | K2: 0 | L2: m2(-) | N2: w2
A3: 157.7180296 | B3: 55.36089607 | C3: 0 | D3: 3064.828813 | F3: =F2+$H$2 -> 148.36 | G3: 0
A4: 166.2621063 | B4: 57.68283117 | C4: 0 | D4: 3327.309012 | F4: 148.54 | G4: 0 | J4: sum | K4: 500000
A5: 178.156355 | B5: 70.53960999 | C5: 0 | D5: 4975.836578 | F5: 148.72 | G5: 0 | J5: sum0 | K5: =SUM(D:D) -> 712389.4148
A6: 165.1826209 | B6: 58.85278956 | C6: 0 | D6: 3463.650839 | F6: 148.9 | G6: 0
A7: 153.2212597 | B7: 53.26111895 | C7: 0 | D7: 2836.746792 | F7: 149.08 | G7: 0
A8: 163.789224 | B8: 60.82475625 | C8: 0 | D8: 3699.650973 | F8: 149.26 | G8: 0
A9: 167.8828365 | B9: 64.5080407 | C9: 0 | D9: 4161.287315 | F9: 149.44 | G9: 0
A10: 150.5627507 | B10: 46.97760949 | C10: 0 | D10: 2206.895794 | F10: 149.62 | G10: 0
A11: 152.2185999 | B11: 47.35561273 | C11: 0 | D11: 2242.554057 | F11: 149.8 | G11: 0
A12: 159.9508327 | B12: 52.99126669 | C12: 0 | D12: 2808.074346 | F12: 149.98 | G12: 0
A13: 150.0072366 | B13: 49.03121535 | C13: 0 | D13: 2404.060078 | F13: 150.16 | G13: 0
A14: 169.7116488 | B14: 63.41442963 | C14: 0 | D14: 4021.389885 | F14: 150.34 | G14: 0
A15: 174.8223549 | B15: 63.09148972 | C15: 0 | D15: 3980.536075 | F15: 150.52 | G15: 0
A16: 155.7576746 | B16: 54.31767047 | C16: 0 | D16: 2950.409326 | F16: 150.7 | G16: 0
A17: 163.6262351 | B17: 57.45928204 | C17: 0 | D17: 3301.569092 | F17: 150.88 | G17: 0
A18: 154.4994324 | B18: 53.59104005 | C18: 0 | D18: 2871.999574 | F18: 151.06 | G18: 0
A19: 177.8635794 | B19: 69.21978042 | C19: 0 | D19: 4791.378002 | F19: 151.24 | G19: 0
A20: 152.6892418 | B20: 52.66732479 | C20: 0 | D20: 2773.8471 | F20: 151.42 | G20: 0
A21: 162.0552617 | B21: 57.18114177 | C21: 0 | D21: 3269.682975 | F21: 151.6 | G21: 0
A22: 164.7649688 | B22: 57.04596338 | C22: 0 | D22: 3254.241938 | F22: 151.78 | G22: 0 | J22: 키 | K22: 몸무게
A23: 159.892078 | B23: 52.68737219 | C23: 0 | D23: 2775.959188 | F23: 151.96 | G23: 0 | J23: 152 | K23: =$K$1*J23+$K$2 -> 0
A24: 167.6937765 | B24: 58.80997978 | C24: 0 | D24: 3458.613721 | F24: 152.14 | G24: 0 | J24: 158 | K24: =$K$1*J24+$K$2 -> 0
A25: 177.8284961 | B25: 65.35068304 | C25: 0 | D25: 4270.711773 | F25: 152.32 | G25: 0 | J25: 165 | K25: 0
A26: 163.3158749 | B26: 56.54994001 | C26: 0 | D26: 3197.895715 | F26: 152.5 | G26: 0 | J26: 171 | K26: 0
A27: 176.1764055 | B27: 69.93615708 | C27: 0 | D27: 4891.066067 | F27: 152.68 | G27: 0 | J27: 177 | K27: 0
A28: 158.1882709 | B28: 56.05993989 | C28: 0 | D28: 3142.716861 | F28: 152.86 | G28: 0
A29: 157.6988679 | B29: 51.09803683 | C29: 0 | D29: 2611.009368 | F29: 153.04 | G29: 0
A30: 150.9285182 | B30: 48.08532768 | C30: 0 | D30: 2312.198738 | F30: 153.22 | G30: 0
A31: 173.7038666 | B31: 64.17444999 | C31: 0 | D31: 4118.360031 | F31: 153.4 | G31: 0
A32: 157.0584673 | B32: 53.71405817 | C32: 0 | D32: 2885.200045 | F32: 153.58 | G32: 0
A33: 157.6380569 | B33: 53.03126771 | C33: 0 | D33: 2812.315355 | F33: 153.76 | G33: 0
A34: 151.3480157 | B34: 49.59433755 | C34: 0 | D34: 2459.598317 | F34: 153.94 | G34: 0
A35: 156.1805159 | B35: 56.07753331 | C35: 0 | D35: 3144.689742 | F35: 154.12 | G35: 0
A36: 167.6588577 | B36: 63.68955375 | C36: 0 | D36: 4056.359257 | F36: 154.3 | G36: 0
A37: 177.8364927 | B37: 67.42888907 | C37: 0 | D37: 4546.655081 | F37: 154.48 | G37: 0
A38: 166.2882346 | B38: 57.07266522 | C38: 0 | D38: 3257.289115 | F38: 154.66 | G38: 0
A39: 169.0311581 | B39: 61.78725943 | C39: 0 | D39: 3817.665428 | F39: 154.84 | G39: 0
A40: 178.8126844 | B40: 66.19368416 | C40: 0 | D40: 4381.603823 | F40: 155.02 | G40: 0
A41: 177.703355 | B41: 69.90301458 | C41: 0 | D41: 4886.431447 | F41: 155.2 | G41: 0
A42: 160.4317921 | B42: 53.49944257 | C42: 0 | D42: 2862.190355 | F42: 155.38 | G42: 0
A43: 164.3993479 | B43: 56.88307925 | C43: 0 | D43: 3235.684705 | F43: 155.56 | G43: 0
A44: 179.8119396 | B44: 67.04091539 | C44: 0 | D44: 4494.484336 | F44: 155.74 | G44: 0
A45: 150.8665735 | B45: 48.21200401 | C45: 0 | D45: 2324.397331 | F45: 155.92 | G45: 0
A46: 166.4300555 | B46: 64.18140778 | C46: 0 | D46: 4119.253104 | F46: 156.1 | G46: 0
A47: 166.14739 | B47: 59.67946495 | C47: 0 | D47: 3561.638537 | F47: 156.28 | G47: 0
A48: 175.4173654 | B48: 70.03887099 | C48: 0 | D48: 4905.44345 | F48: 156.46 | G48: 0
A49: 170.1728278 | B49: 65.26332601 | C49: 0 | D49: 4259.301721 | F49: 156.64 | G49: 0
A50: 179.9031419 | B50: 68.98880837 | C50: 0 | D50: 4759.45568 | F50: 156.82 | G50: 0
A51: 164.8563391 | B51: 58.80345536 | C51: 0 | D51: 3457.846362 | F51: 157 | G51: 0
A52: 170.8584541 | B52: 61.13086399 | C52: 0 | D52: 3736.982532 | F52: 157.18 | G52: 0
A53: 162.6875478 | B53: 58.29969024 | C53: 0 | D53: 3398.853882 | F53: 157.36 | G53: 0
A54: 174.4399184 | B54: 66.82578893 | C54: 0 | D54: 4465.686067 | F54: 157.54 | G54: 0
A55: 162.8259999 | B55: 58.12267627 | C55: 0 | D55: 3378.245497 | F55: 157.72 | G55: 0
A56: 156.8334478 | B56: 54.63887973 | C56: 0 | D56: 2985.407178 | F56: 157.9 | G56: 0
A57: 164.694913 | B57: 60.89281365 | C57: 0 | D57: 3707.934754 | F57: 158.08 | G57: 0
A58: 176.5980023 | B58: 66.89021512 | C58: 0 | D58: 4474.300879 | F58: 158.26 | G58: 0
A59: 159.074927 | B59: 53.68183733 | C59: 0 | D59: 2881.739659 | F59: 158.44 | G59: 0
A60: 154.5093387 | B60: 52.24965295 | C60: 0 | D60: 2730.026233 | F60: 158.62 | G60: 0
A61: 156.6978532 | B61: 54.26822142 | C61: 0 | D61: 2945.039856 | F61: 158.8 | G61: 0
A62: 160.9037608 | B62: 59.68001337 | C62: 0 | D62: 3561.703996 | F62: 158.98 | G62: 0
A63: 164.3404251 | B63: 56.60473643 | C63: 0 | D63: 3204.096186 | F63: 159.16 | G63: 0
A64: 170.5218691 | B64: 65.73784514 | C64: 0 | D64: 4321.464284 | F64: 159.34 | G64: 0
A65: 168.418048 | B65: 64.47894732 | C65: 0 | D65: 4157.534647 | F65: 159.52 | G65: 0
A66: 154.852311 | B66: 54.65094607 | C66: =$K$1*A66+$K$2 -> 0 | D66: =(ABS(B66-C66))^2 -> 2986.725906 | F66: 159.7 | G66: =$K$1*F66+$K$2 -> 0
A67: 156.078549 | B67: 56.72148893 | C67: 0 | D67: 3217.327307 | F67: =F66+$H$2 -> 159.88 | G67: 0
A68: 151.975531 | B68: 46.85036548 | C68: 0 | D68: 2194.956746 | F68: 160.06 | G68: 0
A69: 173.7959272 | B69: 64.95583653 | C69: 0 | D69: 4219.2607 | F69: 160.24 | G69: 0
A70: 163.9075202 | B70: 55.71497239 | C70: 0 | D70: 3104.158149 | F70: 160.42 | G70: 0
A71: 153.4641033 | B71: 48.75827135 | C71: 0 | D71: 2377.369025 | F71: 160.6 | G71: 0
A72: 151.4435667 | B72: 51.42321342 | C72: 0 | D72: 2644.346878 | F72: 160.78 | G72: 0
A73: 165.9906703 | B73: 60.84958461 | C73: 0 | D73: 3702.671948 | F73: 160.96 | G73: 0
A74: 156.5020055 | B74: 53.21359502 | C74: 0 | D74: 2831.686695 | F74: 161.14 | G74: 0
A75: 172.3906428 | B75: 67.15801767 | C75: 0 | D75: 4510.199338 | F75: 161.32 | G75: 0
A76: 161.9679683 | B76: 60.69123191 | C76: 0 | D76: 3683.425631 | F76: 161.5 | G76: 0
A77: 172.3802072 | B77: 61.42944035 | C77: 0 | D77: 3773.576141 | F77: 161.68 | G77: 0
A78: 169.0371341 | B78: 64.35240393 | C78: 0 | D78: 4141.231891 | F78: 161.86 | G78: 0
A79: 150.470472 | B79: 48.57305513 | C79: 0 | D79: 2359.341684 | F79: 162.04 | G79: 0
A80: 162.0594782 | B80: 55.67234694 | C80: 0 | D80: 3099.410213 | F80: 162.22 | G80: 0
A81: 179.5612174 | B81: 72.89853064 | C81: 0 | D81: 5314.19577 | F81: 162.4 | G81: 0
A82: 170.8830231 | B82: 63.1861469 | C82: 0 | D82: 3992.48916 | F82: 162.58 | G82: 0
A83: 172.0346457 | B83: 62.80838029 | C83: 0 | D83: 3944.892635 | F83: 162.76 | G83: 0
A84: 160.6975883 | B84: 55.97108765 | C84: 0 | D84: 3132.762653 | F84: 162.94 | G84: 0
A85: 178.3491307 | B85: 65.92830805 | C85: 0 | D85: 4346.541802 | F85: 163.12 | G85: 0
A86: 169.3785399 | B86: 61.51074752 | C86: 0 | D86: 3783.57206 | F86: 163.3 | G86: 0
A87: 153.1329685 | B87: 48.61263984 | C87: 0 | D87: 2363.188752 | F87: 163.48 | G87: 0
A88: 152.330541 | B88: 49.92750333 | C88: 0 | D88: 2492.755588 | F88: 163.66 | G88: 0
A89: 178.7781268 | B89: 69.98983759 | C89: 0 | D89: 4898.577366 | F89: 163.84 | G89: 0
A90: 164.8313016 | B90: 63.40067924 | C90: 0 | D90: 4019.646128 | F90: 164.02 | G90: 0
A91: 156.5339953 | B91: 52.54004739 | C91: 0 | D91: 2760.456579 | F91: 164.2 | G91: 0
A92: 161.8753284 | B92: 55.59115298 | C92: 0 | D92: 3090.376289 | F92: 164.38 | G92: 0
A93: 165.1011354 | B93: 56.71603789 | C93: 0 | D93: 3216.708954 | F93: 164.56 | G93: 0
A94: 165.5176753 | B94: 63.85161673 | C94: 0 | D94: 4077.028958 | F94: 164.74 | G94: 0
A95: 166.7250305 | B95: 64.28687566 | C95: 0 | D95: 4132.802382 | F95: 164.92 | G95: 0
A96: 169.7176927 | B96: 62.54563306 | C96: 0 | D96: 3911.956215 | F96: 165.1 | G96: 0
A97: 170.789836 | B97: 60.1036069 | C97: 0 | D97: 3612.443563 | F97: 165.28 | G97: 0
A98: 172.6827782 | B98: 66.92628269 | C98: 0 | D98: 4479.127314 | F98: 165.46 | G98: 0
A99: 164.912129 | B99: 56.72015179 | C99: 0 | D99: 3217.175619 | F99: 165.64 | G99: 0
A100: 156.7121261 | B100: 52.25402412 | C100: 0 | D100: 2730.483037 | F100: 165.82 | G100: 0
A101: 173.5346586 | B101: 61.91037795 | C101: 0 | D101: 3832.894898 | F101: 166 | G101: 0
A102: 165.5404776 | B102: 62.14428587 | C102: 0 | D102: 3861.912266 | F102: 166.18 | G102: 0
A103: 174.0200955 | B103: 64.64368096 | C103: 0 | D103: 4178.805488 | F103: 166.36 | G103: 0
A104: 179.1818708 | B104: 72.63281436 | C104: 0 | D104: 5275.525722 | F104: 166.54 | G104: 0
A105: 170.2447826 | B105: 66.87602496 | C105: 0 | D105: 4472.402714 | F105: 166.72 | G105: 0
A106: 176.2733907 | B106: 67.06357466 | C106: 0 | D106: 4497.523046 | F106: 166.9 | G106: 0
A107: 153.6924845 | B107: 54.91708443 | C107: 0 | D107: 3015.886163 | F107: 167.08 | G107: 0
A108: 173.918919 | B108: 67.79810008 | C108: 0 | D108: 4596.582375 | F108: 167.26 | G108: 0
A109: 162.0481378 | B109: 53.56574703 | C109: 0 | D109: 2869.289255 | F109: 167.44 | G109: 0
A110: 155.0328845 | B110: 49.79610392 | C110: 0 | D110: 2479.651966 | F110: 167.62 | G110: 0
A111: 165.2916008 | B111: 59.06005845 | C111: 0 | D111: 3488.090504 | F111: 167.8 | G111: 0
A112: 153.1840128 | B112: 49.34369258 | C112: 0 | D112: 2434.799998 | F112: 167.98 | G112: 0
A113: 169.2914039 | B113: 65.69124922 | C113: 0 | D113: 4315.340224 | F113: 168.16 | G113: 0
A114: 164.9390763 | B114: 57.00592628 | C114: 0 | D114: 3249.675631 | F114: 168.34 | G114: 0
A115: 176.8984991 | B115: 67.12646388 | C115: 0 | D115: 4505.962153 | F115: 168.52 | G115: 0
A116: 159.7066444 | B116: 57.9500069 | C116: 0 | D116: 3358.2033 | F116: 168.7 | G116: 0
A117: 156.5400106 | B117: 53.07662366 | C117: 0 | D117: 2817.127979 | F117: 168.88 | G117: 0
A118: 157.0808333 | B118: 56.85545249 | C118: 0 | D118: 3232.542478 | F118: 169.06 | G118: 0
A119: 168.3129841 | B119: 60.97017897 | C119: 0 | D119: 3717.362724 | F119: 169.24 | G119: 0
A120: 161.6850561 | B120: 60.13676045 | C120: 0 | D120: 3616.429957 | F120: 169.42 | G120: 0
A121: 167.5781375 | B121: 65.11014609 | C121: 0 | D121: 4239.331124 | F121: 169.6 | G121: 0
A122: 165.5157727 | B122: 58.59454056 | C122: 0 | D122: 3433.320184 | F122: 169.78 | G122: 0
A123: 176.0536104 | B123: 65.51795834 | C123: 0 | D123: 4292.602866 | F123: 169.96 | G123: 0
A124: 157.78624 | B124: 51.86013702 | C124: 0 | D124: 2689.473812 | F124: 170.14 | G124: 0
A125: 160.4087144 | B125: 52.30619657 | C125: 0 | D125: 2735.9382 | F125: 170.32 | G125: 0
A126: 172.2702616 | B126: 67.83217493 | C126: 0 | D126: 4601.203955 | F126: 170.5 | G126: 0
A127: 158.3576828 | B127: 56.41641416 | C127: 0 | D127: 3182.811786 | F127: 170.68 | G127: 0
A128: 162.1459383 | B128: 60.08180677 | C128: 0 | D128: 3609.823505 | F128: 170.86 | G128: 0
A129: 172.2534209 | B129: 64.34684997 | C129: 0 | D129: 4140.517102 | F129: 171.04 | G129: 0
A130: 152.3394173 | B130: 49.7653615 | C130: =$K$1*A130+$K$2 -> 0 | D130: =(ABS(B130-C130))^2 -> 2476.591205 | F130: 171.22 | G130: =$K$1*F130+$K$2 -> 0
A131: 160.1812559 | B131: 57.8177527 | C131: 0 | D131: 3342.892527 | F131: =F130+$H$2 -> 171.4 | G131: 0
A132: 159.3686432 | B132: 57.92302288 | C132: 0 | D132: 3355.076579 | F132: 171.58 | G132: 0
A133: 154.5526868 | B133: 52.76930018 | C133: 0 | D133: 2784.599042 | F133: 171.76 | G133: 0
A134: 178.687107 | B134: 67.25334417 | C134: 0 | D134: 4523.012302 | F134: 171.94 | G134: 0
A135: 178.1991345 | B135: 65.75809439 | C135: 0 | D135: 4324.126977 | F135: 172.12 | G135: 0
A136: 179.5275968 | B136: 71.35114914 | C136: 0 | D136: 5090.986484 | F136: 172.3 | G136: 0
A137: 167.9656917 | B137: 65.15602097 | C137: 0 | D137: 4245.307069 | F137: 172.48 | G137: 0
A138: 167.2459477 | B138: 59.12238073 | C138: 0 | D138: 3495.455903 | F138: 172.66 | G138: 0
A139: 175.8048731 | B139: 63.7222429 | C139: 0 | D139: 4060.524241 | F139: 172.84 | G139: 0
A140: 163.1647915 | B140: 60.41544486 | C140: 0 | D140: 3650.025977 | F140: 173.02 | G140: 0
A141: 157.3703653 | B141: 53.13832548 | C141: 0 | D141: 2823.681635 | F141: 173.2 | G141: 0
A142: 161.9173068 | B142: 57.60518031 | C142: 0 | D142: 3318.356799 | F142: 173.38 | G142: 0
A143: 158.1107765 | B143: 55.27205618 | C143: 0 | D143: 3055.000194 | F143: 173.56 | G143: 0
A144: 156.2909693 | B144: 50.01875289 | C144: 0 | D144: 2501.875641 | F144: 173.74 | G144: 0
A145: 176.8633872 | B145: 64.78979115 | C145: 0 | D145: 4197.717038 | F145: 173.92 | G145: 0
A146: 169.5713013 | B146: 66.33345033 | C146: 0 | D146: 4400.126633 | F146: 174.1 | G146: 0
A147: 156.9478995 | B147: 57.31781338 | C147: 0 | D147: 3285.331731 | F147: 174.28 | G147: 0
A148: 175.3856224 | B148: 66.63908483 | C148: 0 | D148: 4440.767626 | F148: 174.46 | G148: 0
A149: 164.7601873 | B149: 61.67133541 | C149: 0 | D149: 3803.353611 | F149: 174.64 | G149: 0
A150: 175.0467986 | B150: 65.88113569 | C150: 0 | D150: 4340.324039 | F150: 174.82 | G150: 0
A151: 155.8660465 | B151: 51.64807434 | C151: 0 | D151: 2667.523584 | F151: 175 | G151: 0
A152: 162.396993 | B152: 54.91760796 | C152: 0 | D152: 3015.943664 | F152: 175.18 | G152: 0
A153: 168.5949451 | B153: 58.8544622 | C153: 0 | D153: 3463.847721 | F153: 175.36 | G153: 0
A154: 156.1514157 | B154: 54.71287241 | C154: 0 | D154: 2993.498407 | F154: 175.54 | G154: 0
A155: 165.1337725 | B155: 57.10524247 | C155: 0 | D155: 3261.008718 | F155: 175.72 | G155: 0
A156: 179.7420734 | B156: 70.05589513 | C156: 0 | D156: 4907.828442 | F156: 175.9 | G156: 0
A157: 150.1205903 | B157: 48.28085078 | C157: 0 | D157: 2331.040552 | F157: 176.08 | G157: 0
A158: 158.6615199 | B158: 57.03304073 | C158: 0 | D158: 3252.767735 | F158: 176.26 | G158: 0
A159: 176.738382 | B159: 70.98020939 | C159: 0 | D159: 5038.190125 | F159: 176.44 | G159: 0
A160: 155.3066057 | B160: 49.55938218 | C160: 0 | D160: 2456.132362 | F160: 176.62 | G160: 0
A161: 150.3088027 | B161: 46.3559309 | C161: 0 | D161: 2148.87233 | F161: 176.8 | G161: 0
A162: 161.3222283 | B162: 54.44305195 | C162: 0 | D162: 2964.045906 | F162: 176.98 | G162: 0
A163: 179.3859297 | B163: 73.39243674 | C163: 0 | D163: 5386.449771 | F163: 177.16 | G163: 0
A164: 167.4450821 | B164: 63.31837074 | C164: 0 | D164: 4009.216073 | F164: 177.34 | G164: 0
A165: 154.3500119 | B165: 50.0345026 | C165: 0 | D165: 2503.451451 | F165: 177.52 | G165: 0
A166: 150.8474082 | B166: 51.83750648 | C166: 0 | D166: 2687.127079 | F166: 177.7 | G166: 0
A167: 173.5012203 | B167: 68.31417611 | C167: 0 | D167: 4666.826658 | F167: 177.88 | G167: 0
A168: 159.9807447 | B168: 55.59362538 | C168: 0 | D168: 3090.651182 | F168: 178.06 | G168: 0
A169: 166.6533977 | B169: 63.35126459 | C169: 0 | D169: 4013.382725 | F169: 178.24 | G169: 0
A170: 166.9196767 | B170: 58.54286814 | C170: 0 | D170: 3427.26741 | F170: 178.42 | G170: 0
A171: 156.2278086 | B171: 52.20818667 | C171: 0 | D171: 2725.694756 | F171: 178.6 | G171: 0
A172: 167.2055858 | B172: 59.92135789 | C172: 0 | D172: 3590.569131 | F172: 178.78 | G172: 0
A173: 165.8468896 | B173: 59.62109105 | C173: 0 | D173: 3554.674497 | F173: 178.96 | G173: 0
A174: 167.190401 | B174: 57.45163296 | C174: 0 | D174: 3300.69013 | F174: 179.14 | G174: 0
A175: 166.4279991 | B175: 58.21784692 | C175: 0 | D175: 3389.3177 | F175: 179.32 | G175: 0
A176: 178.8803476 | B176: 73.56147933 | C176: 0 | D176: 5411.291241 | F176: 179.5 | G176: 0
A177: 179.7771674 | B177: 73.3909381 | C177: 0 | D177: 5386.229795 | F177: 179.68 | G177: 0
A178: 162.2796983 | B178: 60.12978155 | C178: 0 | D178: 3615.590629 | F178: 179.86 | G178: 0
A179: 179.6828467 | B179: 68.09987278 | C179: 0 | D179: 4637.592672 | F179: 180.04 | G179: 0
A180: 155.2345222 | B180: 54.0555187 | C180: 0 | D180: 2921.999102 | F180: 180.22 | G180: 0
A181: 150.5096608 | B181: 47.90858394 | C181: 0 | D181: 2295.232415 | F181: 180.4 | G181: 0
A182: 170.7764357 | B182: 60.48607864 | C182: 0 | D182: 3658.565709 | F182: 180.58 | G182: 0
A183: 153.2921559 | B183: 49.53167191 | C183: 0 | D183: 2453.386522 | F183: 180.76 | G183: 0
A184: 161.9663519 | B184: 57.90358553 | C184: 0 | D184: 3352.825217 | F184: 180.94 | G184: 0
A185: 159.3285495 | B185: 53.88470722 | C185: 0 | D185: 2903.561672 | F185: 181.12 | G185: 0
A186: 174.2382306 | B186: 64.66412185 | C186: 0 | D186: 4181.448654 | F186: 181.3 | G186: 0
A187: 161.2744814 | B187: 56.12598372 | C187: 0 | D187: 3150.126048 | F187: 181.48 | G187: 0
A188: 175.2428287 | B188: 66.25892834 | C188: 0 | D188: 4390.245585 | F188: 181.66 | G188: 0
A189: 171.7367631 | B189: 65.87242793 | C189: 0 | D189: 4339.176762 | F189: 181.84 | G189: 0
A190: 162.19145 | B190: 61.24079099 | C190: 0 | D190: 3750.434481 | F190: 182.02 | G190: 0
A191: 169.367128 | B191: 62.92740781 | C191: 0 | D191: 3959.858654 | F191: 182.2 | G191: 0
A192: 156.699695 | B192: 54.25568801 | C192: 0 | D192: 2943.679682 | F192: 182.38 | G192: 0
A193: 172.4559814 | B193: 64.65523925 | C193: 0 | D193: 4180.299962 | F193: 182.56 | G193: 0
A194: 177.1312112 | B194: 66.4983853 | C194: =$K$1*A194+$K$2 -> 0 | D194: =(ABS(B194-C194))^2 -> 4422.035248 | F194: 182.74 | G194: =$K$1*F194+$K$2 -> 0
A195: 170.0261503 | B195: 66.58555116 | C195: 0 | D195: 4433.635623 | F195: =F194+$H$2 -> 182.92 | G195: 0
A196: 158.4414428 | B196: 53.82477664 | C196: 0 | D196: 2897.106581 | F196: 183.1 | G196: 0
A197: 150.426634 | B197: 47.51487198 | C197: 0 | D197: 2257.66306 | F197: 183.28 | G197: 0
A198: 179.5213813 | B198: 72.49829496 | C198: 0 | D198: 5256.002771 | F198: 183.46 | G198: 0
A199: 167.4263531 | B199: 62.26873187 | C199: 0 | D199: 3877.394968 | F199: 183.64 | G199: 0
A200: 158.0413145 | B200: 54.64448563 | C200: 0 | D200: 2986.019809 | F200: 183.82 | G200: 0

Sheet w1234
A1: 3.527737558 | B1: 3.796797612 | C1: =$K$1*(A1^3)+$K$2*(A1^2)+$K$3*A1+$K$4 -> 0 | D1: =(ABS(B1-C1)) -> 3.796797612 | F1: 0 | G1: =$K$1*(F1^3)+$K$2*(F1^2)+$K$3*F1+$K$4 -> 0 | H1: gap | J1: w1 | K1: 0 | L1: m1(+) | N1: w1 | Q1: 0.3
A2: 2.897593081 | B2: 2.909239809 | C2: =$K$1*(A2^3)+$K$2*(A2^2)+$K$3*A2+$K$4 -> 0 | D2: =(ABS(B2-C2)) -> 2.909239809 | F2: =F1+$H$2 -> 0.1 | G2: =$K$1*(F2^3)+$K$2*(F2^2)+$K$3*F2+$K$4 -> 0 | H2: 0.1 | J2: w2 | K2: 0 | L2: m2(-) | N2: w2 | Q2: -1.5
A3: 1.509740055 | B3: 4.434377067 | C3: 0 | D3: 4.434377067 | F3: =F2+$H$2 -> 0.2 | G3: 0 | J3: w3 | K3: 0 | N3: w3 | Q3: 1.3
A4: 0.07008820772 | B4: 4.848756562 | C4: 0 | D4: 4.848756562 | F4: 0.3 | G4: 0 | J4: w4 | K4: 0 | N4: w4 | Q4: 4
A5: 4.072450101 | B5: 5.58242551 | C5: 0 | D5: 5.58242551 | F5: 0.4 | G5: 0 | J5: sum | K5: 500000
A6: 0.2267637849 | B6: 4.648619964 | C6: 0 | D6: 4.648619964 | F6: 0.5 | G6: 0 | J6: sum0 | K6: =SUM(D:D) -> 236.1885641
A7: 4.313096702 | B7: 6.766553761 | C7: 0 | D7: 6.766553761 | F7: 0.6 | G7: 0
A8: 1.867680848 | B8: 4.213471118 | C8: 0 | D8: 4.213471118 | F8: 0.7 | G8: 0
A9: 4.357229173 | B9: 6.263689218 | C9: 0 | D9: 6.263689218 | F9: 0.8 | G9: 0
A10: 4.747783244 | B10: 9.047305677 | C10: 0 | D10: 9.047305677 | F10: 0.9 | G10: 0
A11: 2.624342144 | B11: 3.406823967 | C11: 0 | D11: 3.406823967 | F11: 1 | G11: 0
A12: 0.2675226331 | B12: 4.85443888 | C12: 0 | D12: 4.85443888 | F12: 1.1 | G12: 0
A13: 2.343500555 | B13: 3.091771479 | C13: 0 | D13: 3.091771479 | F13: 1.2 | G13: 0
A14: 3.113483489 | B14: 3.366523558 | C14: 0 | D14: 3.366523558 | F14: 1.3 | G14: 0
A15: 1.31896466 | B15: 4.146649526 | C15: 0 | D15: 4.146649526 | F15: 1.4 | G15: 0
A16: 4.149008095 | B16: 6.020434573 | C16: 0 | D16: 6.020434573 | F16: 1.5 | G16: 0
A17: 2.945815027 | B17: 3.618315503 | C17: 0 | D17: 3.618315503 | F17: 1.6 | G17: 0
A18: 4.554821551 | B18: 7.587973668 | C18: 0 | D18: 7.587973668 | F18: 1.7 | G18: 0
A19: 3.475577533 | B19: 4.145860196 | C19: 0 | D19: 4.145860196 | F19: 1.8 | G19: 0
A20: 1.219656765 | B20: 4.500972436 | C20: 0 | D20: 4.500972436 | F20: 1.9 | G20: 0
A21: 0.531848371 | B21: 5.342664558 | C21: 0 | D21: 5.342664558 | F21: 2 | G21: 0
A22: 3.380879462 | B22: 3.0269385 | C22: 0 | D22: 3.0269385 | F22: 2.1 | G22: 0
A23: 2.875919044 | B23: 2.715776867 | C23: 0 | D23: 2.715776867 | F23: 2.2 | G23: 0 | J23: x | K23: y
A24: 0.5151131749 | B24: 5.141582683 | C24: 0 | D24: 5.141582683 | F24: 2.3 | G24: 0 | J24: 0.5 | K24: =$K$1*(J24^3)+$K$2*(J24^2)+$K$3*J24+$K$4 -> 0
A25: 1.422401369 | B25: 3.802416316 | C25: 0 | D25: 3.802416316 | F25: 2.4 | G25: 0 | J25: 1.6 | K25: =$K$1*(J25^3)+$K$2*(J25^2)+$K$3*J25+$K$4 -> 0
A26: 1.478864253 | B26: 4.076298211 | C26: 0 | D26: 4.076298211 | F26: 2.5 | G26: 0 | J26: 2.3 | K26: 0
A27: 1.504852474 | B27: 4.613712852 | C27: 0 | D27: 4.613712852 | F27: 2.6 | G27: 0 | J27: 3.1 | K27: 0
A28: 4.899146855 | B28: 10.26552697 | C28: 0 | D28: 10.26552697 | F28: 2.7 | G28: 0 | J28: 4 | K28: 0
A29: 1.391399801 | B29: 3.95093027 | C29: 0 | D29: 3.95093027 | F29: 2.8 | G29: 0
A30: 0.8141079545 | B30: 4.919416912 | C30: 0 | D30: 4.919416912 | F30: 2.9 | G30: 0
A31: 2.050366104 | B31: 3.468368379 | C31: 0 | D31: 3.468368379 | F31: 3 | G31: 0
A32: 3.563652337 | B32: 3.661998184 | C32: 0 | D32: 3.661998184 | F32: 3.1 | G32: 0
A33: 3.165894449 | B33: 2.967882164 | C33: 0 | D33: 2.967882164 | F33: 3.2 | G33: 0
A34: 0.9300675988 | B34: 4.789383969 | C34: 0 | D34: 4.789383969 | F34: 3.3 | G34: 0
A35: 0.403573215 | B35: 4.781714198 | C35: 0 | D35: 4.781714198 | F35: 3.4 | G35: 0
A36: 4.528649151 | B36: 7.458319534 | C36: 0 | D36: 7.458319534 | F36: 3.5 | G36: 0
A37: 3.926061094 | B37: 4.705617148 | C37: 0 | D37: 4.705617148 | F37: 3.6 | G37: 0
A38: 1.448325217 | B38: 4.647614763 | C38: 0 | D38: 4.647614763 | F38: 3.7 | G38: 0
A39: 3.158712089 | B39: 3.381828136 | C39: 0 | D39: 3.381828136 | F39: 3.8 | G39: 0
A40: 2.14228183 | B40: 3.062955724 | C40: 0 | D40: 3.062955724 | F40: 3.9 | G40: 0
A41: 2.805200517 | B41: 3.304308174 | C41: 0 | D41: 3.304308174 | F41: 4 | G41: 0
A42: 4.56858784 | B42: 8.283694073 | C42: 0 | D42: 8.283694073 | F42: 4.1 | G42: 0
A43: 0.1131460071 | B43: 4.678420961 | C43: 0 | D43: 4.678420961 | F43: 4.2 | G43: 0
A44: 4.580819905 | B44: 7.957955047 | C44: 0 | D44: 7.957955047 | F44: 4.3 | G44: 0
A45: 3.3897385 | B45: 3.526958924 | C45: 0 | D45: 3.526958924 | F45: 4.4 | G45: 0
A46: 2.568687499 | B46: 3.123690334 | C46: 0 | D46: 3.123690334 | F46: 4.5 | G46: 0
A47: 1.76736325 | B47: 3.769687793 | C47: 0 | D47: 3.769687793 | F47: 4.6 | G47: 0
A48: 1.348657906 | B48: 3.891772839 | C48: 0 | D48: 3.891772839 | F48: 4.7 | G48: 0
A49: 1.219225824 | B49: 4.946594186 | C49: 0 | D49: 4.946594186 | F49: 4.8 | G49: 0
A50: 0.3045812249 | B50: 4.673535342 | C50: 0 | D50: 4.673535342 | F50: 4.9 | G50: 0

Sheet neuron
A1: 177683 | G1: 임계값 | H1: 50 | L1: =H1 -> 50 | P1: =H1 -> 50 | T1: =H1 -> 50 | V1: 오차합 | W1: 직전오차
B2: =V25 -> 181.530267 | C2: =V2 -> 900 | V2: =ABS(U8-V8)+ABS(U12-V12)+ABS(U17-V17) -> 900 | W2: =C59 -> 75.88430371
B3: =RAND() -> 0.2748849767 | C3: 0.6795258906 | K3: =C15 -> 0.6864944105 | L3: =I$6*K3 -> 0 | O3: =C31 -> 0.03412458559 | P3: =M$5*O3 -> 0
B4: =RAND() -> 0.1448094289 | C4: 0.8873038894 | K4: =C16 -> 0.3959781412 | L4: =I$10*K4 -> 0 | O4: =C32 -> 0.7184631727 | P4: =M$10*O4 -> 0
B5: 0.9644854828 | C5: 0.02373252495 | G5: =C3 -> 0.6795258906 | H5: =$E$9*G5 -> 14.2700437 | K5: =C17 -> 0.3155433749 | L5: =I$14*K5 -> 0 | M5: =IF(SUM(L3:L6)<H$1,0,SUM(L3:L6)) -> 0 | O5: =C33 -> 0.4672666703 | P5: =M$14*O5 -> 24.02774337 | Q5: =IF(SUM(P3:P6)<L$1,0,SUM(P3:P6)) -> 0
B6: 0.04004679728 | C6: 0.8440170235 | G6: =C4 -> 0.8873038894 | H6: =$E$12*G6 -> 10.64764667 | I6: =IF(SUM(H5:H7)<H$1,0,SUM(H5:H7)) -> 0 | K6: =C18 -> 0.6930142583 | L6: =I$18*K6 -> 40.33482669 | O6: =C34 -> 0.9207236645 | P6: =M$19*O6 -> 0 | S6: =C47 -> 0.08046839486 | T6: =Q$5*S6 -> 0
B7: 0.555783884 | C7: 0.3995664919 | G7: =C5 -> 0.02373252495 | H7: =$E$15*G7 -> 1.590079171 | S7: =C48 -> 0.5343986657 | T7: =Q$10*S7 -> 0 | U7: 결과값 | V7: 목표치
B8: 0.6486787495 | C8: 0.3916331901 | E8: 입력값 | K8: =C19 -> 0.006748556924 | L8: =I$6*K8 -> 0 | O8: =C35 -> 0.9725346712 | P8: =M$5*O8 -> 0 | S8: 0.5715817212 | T8: =Q$14*S8 -> 0 | U8: =IF(SUM(T6:T9)<P$1,0,SUM(T6:T9)) -> 0 | V8: 200
B9: 0.2892930894 | C9: 0.8050906703 | E9: 21 | G9: =C6 -> 0.8440170235 | H9: =$E$9*G9 -> 17.72435749 | K9: =C20 -> 0.1365116129 | L9: =I$10*K9 -> 0 | O9: =C36 -> 0.06086987587 | P9: =M$10*O9 -> 0 | S9: =C50 -> 0.007006190316 | T9: =Q$19*S9 -> 0
B10: 0.5787125829 | C10: 0.8055393941 | G10: =C7 -> 0.3995664919 | H10: =$E$12*G10 -> 4.794797903 | I10: =IF(SUM(H9:H11)<H$1,0,SUM(H9:H11)) -> 0 | K10: =C21 -> 0.8919446221 | L10: =I$14*K10 -> 0 | M10: =IF(SUM(L8:L11)<H$1,0,SUM(L8:L11)) -> 0 | O10: 0.1864908124 | P10: =M$14*O10 -> 9.589713253 | Q10: =IF(SUM(P8:P11)<L$1,0,SUM(P8:P11)) -> 0
B11: 0.3763980503 | C11: 0.2989340638 | G11: =C8 -> 0.3916331901 | H11: =$E$15*G11 -> 26.23942374 | K11: =C22 -> 0.562115291 | L11: =I$18*K11 -> 32.71624295 | O11: 0.3462832329 | P11: =M$19*O11 -> 0 | S11: =C51 -> 0.0954819792 | T11: =Q$5*S11 -> 0
B12: 0.7845182149 | C12: 0.6754151334 | E12: 12 | S12: =C52 -> 0.6693290854 | T12: =Q$10*S12 -> 0 | U12: =IF(SUM(T11:T14)<P$1,0,SUM(T11:T14)) -> 0 | V12: 300
B13: 0.4335123806 | C13: 0.04473470294 | G13: =C9 -> 0.8050906703 | H13: =$E$9*G13 -> 16.90690408 | K13: =C23 -> 0.09837602889 | L13: =I$6*K13 -> 0 | O13: =C39 -> 0.9640935384 | P13: =M$5*O13 -> 0 | S13: 0.936002504 | T13: =Q$14*S13 -> 0
B14: 0.3939341319 | C14: 0.6489773341 | G14: =C10 -> 0.8055393941 | H14: =$E$12*G14 -> 9.666472729 | I14: =IF(SUM(H13:H15)<H$1,0,SUM(H13:H15)) -> 0 | K14: =C24 -> 0.7623886093 | L14: =I$10*K14 -> 0 | M14: =IF(SUM(L13:L16)<H$1,0,SUM(L13:L16)) -> 51.42190723 | O14: =C40 -> 0.7264475161 | P14: =M$10*O14 -> 0 | Q14: =IF(SUM(P13:P16)<L$1,0,SUM(P13:P16)) -> 0 | S14: 0.03731366688 | T14: =Q$19*S14 -> 0
B15: 0.4903625002 | C15: 0.6864944105 | E15: 67 | G15: =C11 -> 0.2989340638 | H15: =$E$15*G15 -> 20.02858228 | K15: =C25 -> 0.1160682926 | L15: =I$14*K15 -> 0 | O15: 0.02400023956 | P15: =M$14*O15 -> 1.234138092
B16: 0.01559132818 | C16: 0.3959781412 | K16: =C26 -> 0.8835073267 | L16: =I$18*K16 -> 51.42190723 | O16: 0.9232470002 | P16: =M$19*O16 -> 0 | S16: =C55 -> 0.3459738372 | T16: =Q$5*S16 -> 0
B17: 0.9681275299 | C17: 0.3155433749 | G17: =C12 -> 0.6754151334 | H17: =$E$9*G17 -> 14.1837178 | S17: =C56 -> 0.3055254796 | T17: =Q$10*S17 -> 0 | U17: =IF(SUM(T16:T19)<P$1,0,SUM(T16:T19)) -> 0 | V17: 400
B18: 0.06091325989 | C18: 0.6930142583 | G18: =C13 -> 0.04473470294 | H18: =$E$12*G18 -> 0.5368164353 | I18: =IF(SUM(H17:H19)<H$1,0,SUM(H17:H19)) -> 58.20201562 | K18: =C27 -> 0.08029030486 | L18: =I$6*K18 -> 0 | O18: =C43 -> 0.4722616056 | P18: =M$5*O18 -> 0 | S18: 0.8387511461 | T18: =Q$14*S18 -> 0
B19: 0.1079418795 | C19: 0.006748556924 | G19: =C14 -> 0.6489773341 | H19: =$E$15*G19 -> 43.48148138 | K19: =C28 -> 0.8098299717 | L19: =I$10*K19 -> 0 | M19: =IF(SUM(L18:L21)<H$1,0,SUM(L18:L21)) -> 0 | O19: =C44 -> 0.7697664722 | P19: =M$10*O19 -> 0 | Q19: =IF(SUM(P18:P21)<L$1,0,SUM(P18:P21)) -> 0 | S19: 0.5471076684 | T19: =Q$19*S19 -> 0
B20: 0.8464828922 | C20: 0.1365116129 | K20: =C29 -> 0.3511607784 | L20: =I$14*K20 -> 0 | O20: 0.5893175621 | P20: =M$14*O20 -> 30.303833
B21: 0.4893231168 | C21: 0.8919446221 | K21: =C30 -> 0.09292396874 | L21: =I$18*K21 -> 5.40836228 | O21: 0.1262369171 | P21: =M$19*O21 -> 0
B22: 0.9785314785 | C22: 0.562115291
B23: 0.8264301217 | C23: 0.09837602889
B24: 0.618545544 | C24: 0.7623886093 | V24: 오차합
B25: 0.8072783391 | C25: 0.1160682926 | V25: =ABS(U31-V31)+ABS(U35-V35)+ABS(U40-V40) -> 181.530267
B26: 0.9398317823 | C26: 0.8835073267 | K26: =B15 -> 0.4903625002 | L26: =I$29*K26 -> 35.37025169 | O26: =B31 -> 0.7994114105 | P26: =M$28*O26 -> 0
B27: 0.7728851041 | C27: 0.08029030486 | K27: =B16 -> 0.01559132818 | L27: =I$33*K27 -> 0.7947190843 | O27: =B32 -> 0.9189687401 | P27: =M$33*O27 -> 46.80560419
B28: 0.7851936154 | C28: 0.8098299717 | G28: =B3 -> 0.2748849767 | H28: =$E$9*G28 -> 5.772584511 | K28: 0.9681275299 | L28: =I$37*K28 -> 0 | M28: =IF(SUM(L26:L29)<H$1,0,SUM(L26:L29)) -> 0 | O28: =B33 -> 0.8460498118 | P28: =M$37*O28 -> 77.10856258 | Q28: =IF(SUM(P26:P29)<L$1,0,SUM(P26:P29)) -> 134.9408616
B29: 0.2973064442 | C29: 0.3511607784 | G29: =B4 -> 0.1448094289 | H29: =$E$12*G29 -> 1.737713147 | I29: =IF(SUM(H28:H30)<H$1,0,SUM(H28:H30)) -> 72.130825 | K29: 0.06091325989 | L29: =I$41*K29 -> 0 | O29: =B34 -> 0.1151353024 | P29: =M$42*O29 -> 11.02669485 | S29: =B47 -> 0.8788888625 | T29: =Q$28*S29 -> 118.5980204
B30: 0.3305266925 | C30: 0.09292396874 | G30: 0.9644854828 | H30: =$E$15*G30 -> 64.62052734 | S30: =B48 -> 0.7991742533 | T30: =Q$33*S30 -> 52.20230706 | U30: 결과값 | V30: 목표치
B31: 0.7994114105 | C31: 0.03412458559 | E31: 입력값 | K31: =B19 -> 0.1079418795 | L31: =I$29*K31 -> 7.78593682 | O31: =B35 -> 0.6179803184 | P31: =M$28*O31 -> 0 | S31: 0.6023954894 | T31: =Q$37*S31 -> 82.06708644 | U31: =IF(SUM(T29:T32)<P$1,0,SUM(T29:T32)) -> 276.0971477 | V31: =V8 -> 200
B32: 0.9189687401 | C32: 0.7184631727 | E32: =E9 -> 21 | G32: =B6 -> 0.04004679728 | H32: =$E$9*G32 -> 0.840982743 | K32: =B20 -> 0.8464828922 | L32: =I$33*K32 -> 43.14681219 | O32: =B36 -> 0.7863088269 | P32: =M$33*O32 -> 40.04887012 | S32: 0.1544613788 | T32: =Q$42*S32 -> 23.22973386
B33: 0.8460498118 | C33: 0.4672666703 | G33: =B7 -> 0.555783884 | H33: =$E$12*G33 -> 6.669406608 | I33: =IF(SUM(H32:H34)<H$1,0,SUM(H32:H34)) -> 50.97186557 | K33: 0.4893231168 | L33: =I$37*K33 -> 0 | M33: =IF(SUM(L31:L34)<H$1,0,SUM(L31:L34)) -> 50.93274901 | O33: =B37 -> 0.2725877271 | P33: =M$37*O33 -> 24.84351101 | Q33: =IF(SUM(P31:P34)<L$1,0,SUM(P31:P34)) -> 65.32030636
B34: 0.1151353024 | C34: 0.9207236645 | G34: 0.6486787495 | H34: =$E$15*G34 -> 43.46147622 | K34: 0.9785314785 | L34: =I$41*K34 -> 0 | O34: =B38 -> 0.004468183866 | P34: =M$42*O34 -> 0.4279252234 | S34: =B51 -> 0.455457094 | T34: =Q$28*S34 -> 61.45977269
B35: 0.6179803184 | C35: 0.9725346712 | E35: =E12 -> 12 | S35: =B52 -> 0.0777872652 | T35: =Q$33*S35 -> 5.081087994 | U35: =IF(SUM(T34:T37)<P$1,0,SUM(T34:T37)) -> 217.1417077 | V35: =V12 -> 300
B36: 0.7863088269 | C36: 0.06086987587 | G36: =B9 -> 0.2892930894 | H36: =$E$9*G36 -> 6.075154877 | K36: =B23 -> 0.8264301217 | L36: =I$29*K36 -> 59.61108648 | O36: =B39 -> 0.5888102113 | P36: =M$28*O36 -> 0 | S36: 0.2753666321 | T36: =Q$37*S36 -> 37.51445287
B37: 0.2725877271 | C37: 0.1864908124 | G37: =B10 -> 0.5787125829 | H37: =$E$12*G37 -> 6.944550995 | I37: =IF(SUM(H36:H38)<H$1,0,SUM(H36:H38)) -> 0 | K37: =B24 -> 0.618545544 | L37: =I$33*K37 -> 31.52842032 | M37: =IF(SUM(L36:L39)<H$1,0,SUM(L36:L39)) -> 91.1395068 | O37: =B40 -> 0.7402089934 | P37: =M$33*O37 -> 37.70087888 | Q37: =IF(SUM(P36:P39)<L$1,0,SUM(P36:P39)) -> 136.2345633 | S37: 0.7519449197 | T37: =Q$42*S37 -> 113.0863941
B38: 0.004468183866 | C38: 0.3462832329 | E38: =E15 -> 67 | G38: 0.3763980503 | H38: =$E$15*G38 -> 25.21866937 | K38: 0.8072783391 | L38: =I$37*K38 -> 0 | O38: =B41 -> 0.7809490853 | P38: =M$37*O38 -> 71.17531447
B39: 0.5888102113 | C39: 0.9640935384 | K39: 0.9398317823 | L39: =I$41*K39 -> 0 | O39: =B42 -> 0.285662589 | P39: =M$42*O39 -> 27.35836995 | S39: =B55 -> 0.4423614446 | T39: =Q$28*S39 -> 59.69263448
B40: 0.7402089934 | C40: 0.7264475161 | G40: =B12 -> 0.7845182149 | H40: =$E$9*G40 -> 16.47488251 | S40: =B56 -> 0.8705989766 | T40: =Q$33*S40 -> 56.86779187 | U40: =IF(SUM(T39:T42)<P$1,0,SUM(T39:T42)) -> 377.4251731 | V40: =V17 -> 400
B41: 0.7809490853 | C41: 0.02400023956 | G41: =B13 -> 0.4335123806 | H41: =$E$12*G41 -> 5.202148567 | I41: =IF(SUM(H40:H42)<H$1,0,SUM(H40:H42)) -> 0 | K41: =B27 -> 0.7728851041 | L41: =I$29*K41 -> 55.74884019 | O41: =B43 -> 0.813565703 | P41: =M$28*O41 -> 0 | S41: 0.9368597508 | T41: =Q$37*S41 -> 127.632679
B42: 0.285662589 | C42: 0.9232470002 | G42: 0.3939341319 | H42: =$E$15*G42 -> 26.39358684 | K42: =B28 -> 0.7851936154 | L42: =I$33*K42 -> 40.02278341 | M42: =IF(SUM(L41:L44)<H$1,0,SUM(L41:L44)) -> 95.7716236 | O42: =B44 -> 0.2100140364 | P42: =M$33*O42 -> 10.6965922 | Q42: =IF(SUM(P41:P44)<L$1,0,SUM(P41:P44)) -> 150.3918587 | S42: 0.8858994686 | T42: =Q$42*S42 -> 133.2320677
B43: 0.813565703 | C43: 0.4722616056 | K43: 0.2973064442 | L43: =I$37*K43 -> 0 | O43: 0.9679547235 | P43: =M$37*O43 -> 88.2189161
B44: 0.2100140364 | C44: 0.7697664722 | K44: 0.3305266925 | L44: =I$41*K44 -> 0 | O44: 0.5374906309 | P44: =M$42*O44 -> 51.4763504
B45: 0.9679547235 | C45: 0.5893175621
B46: 0.5374906309 | C46: 0.1262369171
B47: 0.8788888625 | C47: 0.08046839486
B48: 0.7991742533 | C48: 0.5343986657
B49: 0.6023954894 | C49: 0.5715817212
B50: 0.1544613788 | C50: 0.007006190316
B51: 0.455457094 | C51: 0.0954819792
B52: 0.0777872652 | C52: 0.6693290854
B53: 0.2753666321 | C53: 0.936002504
B54: 0.7519449197 | C54: 0.03731366688
B55: 0.4423614446 | C55: 0.3459738372
B56: 0.8705989766 | C56: 0.3055254796
B57: 0.9368597508 | C57: 0.8387511461
B58: 0.8858994686 | C58: 0.5471076684
B59: =C2 -> 900 | C59: 75.88430371
